bitfinex-derivatives/quotes_BTCF0:USTF0_20250125
["timestamp","ask_amount","ask_price","bid_price","bid_amount"]
[1737817727722,0.60231212,104690.0,104680.0,2.17007604]
[1737817727922,0.60231212,104690.0,104680.0,1.54124338]
[1737817727923,0.74548912,104690.0,104680.0,1.54124338]
[1737817732228,0.71674881,104690.0,104680.0,1.54124338]
[1737817736125,0.80256264,104690.0,104680.0,1.54124338]
[1737817738423,0.44176264,104690.0,104680.0,1.57452164]
[1737817738822,0.44176264,104690.0,104680.0,1.57452137]
[1737817739018,0.44176264,104690.0,104680.0,1.54124338]
[1737817742930,0.68812595,104690.0,104680.0,1.54124338]
[1737817743330,0.08681383,104690.0,104680.0,1.54124338]
[1737817743532,0.08681383,104690.0,104680.0,1.72746526]
[1737817744633,0.32732595,104690.0,104680.0,0.22746526]
[1737817745022,0.32732595,104690.0,104680.0,1.72746526]
[1737817745637,0.2971657,104690.0,104680.0,1.72746526]
[1737817745932,0.2971657,104690.0,104680.0,1.57461126]
[1737817746831,0.21135187,104690.0,104680.0,1.80359428]
[1737817749032,0.57215187,104690.0,104680.0,1.80359428]
[1737817749331,0.57215187,104690.0,104680.0,1.7702264]
[1737817749531,0.57215187,104690.0,104680.0,1.80355519]
[1737817749932,0.21135187,104690.0,104680.0,1.80355519]
[1737817750639,0.2971657,104690.0,104680.0,1.97505473]
[1737817750841,0.6579657,104690.0,104680.0,1.97505473]
[1737817751250,0.2971657,104690.0,104680.0,1.97505473]
[1737817752250,0.6579657,104690.0,104680.0,1.97505473]
[1737817753651,0.6579657,104690.0,104680.0,1.94172594]
[1737817753945,0.57215187,104690.0,104680.0,2.08965135]
[1737817754950,0.57215187,104690.0,104680.0,2.05631493]
[1737817756647,0.57215187,104690.0,104680.0,2.08966211]
[1737817757853,0.77240239,104690.0,104680.0,1.80357358]
[1737817760751,0.71488952,104690.0,104680.0,1.80357358]
[1737817760950,0.35408952,104690.0,104680.0,1.80357358]
[1737817761350,0.35408952,104690.0,104680.0,2.01394045]
[1737817761851,0.20125052,104690.0,104680.0,2.54636458]
[1737817762246,0.20125052,104690.0,104680.0,2.18556458]
[1737817762441,0.20125052,104690.0,104680.0,2.12805171]
[1737817763250,0.20125052,104690.0,104680.0,2.18556458]
[1737817763456,0.41160239,104690.0,104680.0,2.12805171]
[1737817765256,0.21135187,104690.0,104680.0,2.29504853]
[1737817765454,0.153839,104690.0,104680.0,2.29504853]
[1737817766757,0.21135187,104690.0,104680.0,2.29504853]
[1737817774163,0.153839,104690.0,104680.0,2.29504853]
[1737817775262,0.001,104690.0,104680.0,2.71345562]
[1737817775457,0.001,104690.0,104680.0,1.21345562]
[1737817775958,0.001,104690.0,104680.0,2.71345562]
[1737817777062,0.153839,104690.0,104680.0,2.71345562]
[1737817781264,0.153839,104690.0,104680.0,3.05619975]
[1737817782066,0.21135187,104690.0,104680.0,2.99868688]
[1737817783056,0.153839,104690.0,104680.0,3.05619975]
[1737817783261,0.153839,104690.0,104680.0,2.99868688]
[1737817785760,0.21135187,104690.0,104680.0,2.99868688]
[1737817786365,0.153839,104690.0,104680.0,2.99868688]
[1737817786772,0.21135187,104690.0,104680.0,2.99868688]
[1737817787069,0.153839,104690.0,104680.0,2.99868688]
[1737817788669,0.153839,104690.0,104680.0,2.96524548]
[1737817789372,0.153839,104690.0,104680.0,2.62250135]
[1737817790873,0.153839,104690.0,104680.0,2.65594302]
[1737817791171,0.153839,104690.0,104680.0,2.65594304]
[1737817791369,0.153839,104690.0,104680.0,2.71345591]
[1737817791570,0.153839,104690.0,104680.0,2.68001422]
[1737817792166,0.001,104690.0,104680.0,2.73752709]
[1737817792367,0.20025052,104700.0,104690.0,0.152839]
[1737817792572,0.20025052,104700.0,104690.0,0.68162217]
[1737817792868,0.20025052,104700.0,104690.0,0.72341784]
[1737817793075,0.20025052,104700.0,104690.0,2.18162217]
[1737817793373,0.20025052,104700.0,104690.0,2.22341762]
[1737817793670,0.20025052,104700.0,104690.0,2.23041762]
[1737817793868,0.20125052,104700.0,104690.0,2.23041762]
[1737817796365,0.20125052,104700.0,104690.0,2.21548894]
[1737817796669,0.20125052,104700.0,104690.0,2.23040987]
[1737817797879,0.001,104700.0,104690.0,3.19724784]
[1737817798079,0.16313121,104710.0,104690.0,3.04440884]
[1737817798376,0.16313121,104710.0,104700.0,0.60273787]
[1737817798576,0.16313121,104710.0,104700.0,0.67498368]
[1737817798776,0.00014338,104710.0,104700.0,0.73249655]
[1737817798979,0.44574852,104720.0,104710.0,0.15281]
[1737817799168,0.45586361,104720.0,104710.0,0.2491326]
[1737817799368,0.45586361,104720.0,104710.0,0.22524969]
[1737817799771,0.45586361,104720.0,104710.0,0.25868307]
[1737817800169,0.45686361,104720.0,104710.0,0.22524969]
[1737817800372,0.45686361,104720.0,104710.0,0.25868307]
[1737817800573,0.23345052,104720.0,104710.0,0.3004748]
[1737817800877,0.20125052,104720.0,104710.0,0.6913748]
[1737817801875,0.35404652,104720.0,104710.0,0.6913748]
[1737817802681,0.153796,104720.0,104710.0,1.0912303]
[1737817803068,0.21130887,104720.0,104710.0,1.00361743]
[1737817803472,0.27340887,104720.0,104710.0,1.00361743]
[1737817803977,0.215896,104720.0,104710.0,1.00361743]
[1737817804189,0.215896,104720.0,104710.0,1.0611303]
[1737817804380,0.184996,104720.0,104710.0,1.0611303]
[1737817804876,0.153796,104720.0,104710.0,1.0611303]
[1737817805079,0.153796,104720.0,104710.0,1.1236303]
[1737817805378,0.153796,104720.0,104710.0,2.6236303]
[1737817805684,0.001,104720.0,104710.0,2.6236303]
[1737817805885,0.3531799,104730.0,104710.0,2.52833317]
[1737817806081,0.2003939,104730.0,104720.0,0.62862174]
[1737817806282,0.2003939,104730.0,104720.0,0.75167367]
[1737817807082,0.143177,104740.0,104730.0,0.152781]
[1737817807286,0.143177,104740.0,104730.0,0.6612458]
[1737817807674,0.143177,104740.0,104730.0,0.69126648]
[1737817808071,0.11426853,104740.0,104730.0,0.69126648]
[1737817808279,0.11426853,104740.0,104730.0,0.64947475]
[1737817808981,0.11426853,104740.0,104730.0,0.5619412]
[1737817809975,0.26903453,104740.0,104730.0,0.5619412]
[1737817810176,0.38686808,104740.0,104730.0,0.5619412]
[1737817810378,0.33113453,104740.0,104730.0,0.52850782]
[1737817812882,0.216866,104740.0,104730.0,0.75699187]
[1737817813780,0.216866,104740.0,104730.0,2.25699187]
[1737817815780,0.30439955,104740.0,104730.0,2.10421087]
[1737817815986,0.66519955,104740.0,104730.0,1.74341087]
[1737817816185,0.66519955,104740.0,104730.0,0.24341087]
[1737817816775,0.30439955,104740.0,104730.0,0.24341087]
[1737817817382,0.30439955,104740.0,104730.0,0.01492201]
[1737817817782,0.66519955,104740.0,104730.0,0.01492201]
[1737817820279,0.152781,104730.0,104720.0,1.50014338]
[1737817820482,0.63411455,104730.0,104720.0,1.50014338]
[1737817821290,0.63411455,104730.0,104720.0,0.00014338]
[1737817821792,0.63411455,104730.0,104720.0,1.50014338]
[1737817822178,0.546581,104730.0,104720.0,1.50014338]
[1737817822393,0.185781,104730.0,104720.0,1.50014338]
[1737817822578,0.186781,104730.0,104720.0,1.50014338]
[1737817822782,0.186781,104730.0,104720.0,1.5335745]
[1737817824996,0.27431455,104730.0,104720.0,1.5335745]
[1737817825387,0.27431455,104730.0,104720.0,1.50014338]
[1737817825895,0.28449406,104730.0,104720.0,1.50014338]
[1737817828196,0.28449406,104730.0,104720.0,1.67076359]
[1737817829288,0.19696051,104730.0,104720.0,1.67076359]
[1737817829688,0.28449406,104730.0,104720.0,1.67076359]
[1737817832699,0.28449406,104730.0,104720.0,1.70419482]
[1737817836403,0.28449406,104730.0,104720.0,1.67076359]
[1737817838096,0.28449406,104730.0,104720.0,1.70419493]
[1737817838602,0.28449406,104730.0,104720.0,1.67076359]
[1737817838995,0.28449406,104730.0,104720.0,1.704195]
[1737817839196,0.28449406,104730.0,104720.0,0.204195]
[1737817839799,0.28449406,104730.0,104720.0,1.704195]
[1737817840197,0.28449406,104730.0,104720.0,0.204195]
[1737817840798,0.28449406,104730.0,104720.0,1.704195]
[1737817843805,0.28449406,104730.0,104720.0,1.70419495]
[1737817845006,0.28449406,104730.0,104720.0,1.93268381]
[1737817845505,0.19696051,104730.0,104720.0,1.93268381]
[1737817845805,0.25443603,104730.0,104720.0,1.93268381]
[1737817847804,0.25443603,104730.0,104720.0,2.29348381]
[1737817849307,0.22143603,104730.0,104720.0,2.29348381]
[1737817849895,0.22143603,104730.0,104720.0,2.40847467]
[1737817850308,0.16396051,104730.0,104720.0,2.40847467]
[1737817850512,0.22143603,104730.0,104720.0,2.40847467]
[1737817850707,0.16396051,104730.0,104720.0,2.40847467]
[1737817851305,0.16396051,104730.0,104720.0,2.56127067]
[1737817851609,0.16396051,104730.0,104720.0,2.66053165]
[1737817852213,0.16396051,104730.0,104720.0,2.60305613]
[1737817852598,0.22143603,104730.0,104720.0,2.60305602]
[1737817852803,0.22143603,104730.0,104720.0,2.45026022]
[1737817853004,0.22143603,104730.0,104720.0,2.40847467]
[1737817854012,0.22143603,104730.0,104720.0,1.31030811]
[1737817854507,0.22143603,104730.0,104720.0,2.81030811]
[1737817854903,0.22143603,104730.0,104720.0,1.31030811]
[1737817855104,0.22143603,104730.0,104720.0,0.94950811]
[1737817855405,0.67011155,104730.0,104720.0,0.94950858]
[1737817856113,0.67011155,104730.0,104720.0,0.91607675]
[1737817856813,0.61263603,104730.0,104720.0,0.91607675]
[1737817857005,0.67011155,104730.0,104720.0,0.91607675]
[1737817857205,0.61263603,104730.0,104720.0,0.91607675]
[1737817857404,0.67011155,104730.0,104720.0,0.91607675]
[1737817857605,0.61263603,104730.0,104720.0,0.91607675]
[1737817857800,0.64275934,104730.0,104720.0,0.91607675]
[1737817858207,0.78593634,104730.0,104720.0,0.17184828]
[1737817860612,0.64275934,104730.0,104720.0,0.17184828]
[1737817865112,0.73035817,104730.0,104720.0,0.17184828]
[1737817869014,0.87353517,104730.0,104720.0,0.00014338]
[1737817873226,1.04524822,104730.0,104720.0,0.00014338]
[1737817877624,0.9850448,104730.0,104720.0,0.00014338]
[1737817888743,0.8418678,104730.0,104720.0,0.00014338]
[1737817894039,0.75397068,104730.0,104720.0,0.00014338]
[1737817894440,0.8114678,104730.0,104720.0,0.00014338]
[1737817899452,0.75397068,104730.0,104720.0,0.00014338]
[1737817900750,0.8114678,104730.0,104720.0,0.00014338]
[1737817901854,0.8438678,104730.0,104720.0,0.00014338]
[1737817911261,0.78637068,104730.0,104720.0,0.00014338]
[1737817911659,0.8438678,104730.0,104720.0,0.00014338]
[1737817918563,0.78637068,104730.0,104720.0,0.00014338]
[1737817920270,0.78637068,104730.0,104720.0,0.01507032]
[1737817920570,0.8438678,104730.0,104720.0,0.01507031]
[1737817922764,0.78637068,104730.0,104720.0,0.01507031]
[1737817923168,0.8438678,104730.0,104720.0,0.18677521]
[1737817923371,0.78637068,104730.0,104720.0,0.18677521]
[1737817926974,0.8438678,104730.0,104720.0,0.18677521]
[1737817928674,0.78637068,104730.0,104720.0,0.18677521]
[1737817929872,0.78637068,104730.0,104720.0,0.01507031]
[1737817932279,0.78637068,104730.0,104720.0,0.00014338]
[1737817932476,0.20033189,104740.0,104720.0,0.77593762]
[1737817932678,0.20033189,104740.0,104730.0,0.66577812]
[1737817932877,0.20033189,104740.0,104730.0,2.19920091]
[1737817933379,0.20033189,104740.0,104730.0,2.16577812]
[1737817933766,0.20233189,104740.0,104730.0,2.16577812]
[1737817933971,0.20233189,104740.0,104730.0,2.19920008]
[1737817934171,0.20233189,104740.0,104730.0,2.46577812]
[1737817934376,0.06434265,104740.0,104730.0,2.54099634]
[1737817934575,0.48666368,104750.0,104740.0,0.152766]
[1737817934881,0.48666368,104750.0,104740.0,0.60448591]
[1737817935271,0.48666368,104750.0,104740.0,0.66198303]
[1737817935671,0.48666368,104750.0,104740.0,0.60448591]
[1737817936383,0.48666368,104750.0,104740.0,0.66198303]
[1737817936585,0.00014338,104750.0,104740.0,1.40798104]
[1737817936979,0.00214338,104750.0,104740.0,1.40798104]
[1737817937482,0.2123925,104750.0,104740.0,1.35048392]
[1737817937785,0.15489538,104750.0,104740.0,1.31706113]
[1737817939480,0.15489538,104750.0,104740.0,1.4045963]
[1737817940579,0.15489538,104750.0,104740.0,0.77162946]
[1737817944384,0.15489538,104750.0,104740.0,0.60110117]
[1737817955592,0.15489538,104750.0,104740.0,0.77162946]
[1737817956991,0.18789538,104750.0,104740.0,0.77162946]
[1737817957188,0.22029538,104750.0,104740.0,0.77162946]
[1737817957689,0.22029538,104750.0,104740.0,0.74153508]
[1737817961003,0.22029538,104750.0,104740.0,0.79897587]
[1737817961503,0.22029538,104750.0,104740.0,0.77495753]
[1737817961694,0.22029538,104750.0,104740.0,0.83239832]
[1737817961889,0.22029538,104750.0,104740.0,2.33239832]
[1737817962089,0.22029538,104750.0,104740.0,2.27495753]
[1737817962602,0.22029538,104750.0,104740.0,2.3333691]
[1737817965405,0.18789538,104750.0,104740.0,2.43258797]
[1737817966390,0.15489538,104750.0,104740.0,2.35738744]
[1737817966596,0.00214338,104750.0,104740.0,2.46488595]
[1737817966803,0.00214338,104750.0,104740.0,0.96488595]
[1737817967299,0.00214338,104750.0,104740.0,2.46488595]
[1737817967504,0.00214338,104750.0,104740.0,3.22598294]
[1737817969702,0.00214338,104750.0,104740.0,3.16854215]
[1737817969902,0.15489538,104750.0,104740.0,1.63624215]
[1737817970098,0.18609538,104750.0,104740.0,1.63624215]
[1737817970504,0.18609538,104750.0,104740.0,3.13624215]
[1737817970904,0.18609538,104750.0,104740.0,1.63624215]
[1737817971408,0.18609538,104750.0,104740.0,3.13624215]
[1737817971607,0.18609538,104750.0,104740.0,3.19368294]
[1737817971804,0.18609538,104750.0,104740.0,3.15190599]
[1737817972109,0.18609538,104750.0,104740.0,3.11848443]
[1737817975404,0.18609538,104750.0,104740.0,2.77407401]
[1737817977109,0.18609538,104750.0,104740.0,2.71663322]
[1737817977308,0.18609538,104750.0,104740.0,2.79183039]
[1737817978911,0.18609538,104750.0,104740.0,2.84927118]
[1737817980913,0.18609538,104750.0,104740.0,2.86128998]
[1737817983417,0.00214338,104750.0,104740.0,2.86128998]
[1737817983608,0.00214338,104750.0,104740.0,1.39298998]
[1737817984111,0.00214338,104750.0,104740.0,2.89298998]
[1737817984305,0.00214338,104750.0,104740.0,2.95043077]
[1737817984711,0.35263567,104770.0,104760.0,0.152737]
[1737817984913,0.30263567,104770.0,104760.0,0.6618388]
[1737817985110,0.09991067,104770.0,104760.0,0.6935388]
[1737817985309,0.09991067,104770.0,104760.0,0.73530671]
[1737817985609,0.05695469,104770.0,104760.0,1.2229075]
[1737817986011,0.05695469,104770.0,104760.0,1.16546671]
[1737817986518,0.05695469,104770.0,104760.0,1.13204649]
[1737817986918,0.05895469,104770.0,104760.0,1.13204649]
[1737817987816,0.05895469,104770.0,104760.0,1.22247881]
[1737817988218,0.00895469,104770.0,104760.0,1.22247881]
[1737817988516,0.00895469,104770.0,104760.0,1.23437023]
[1737817989620,0.00895469,104770.0,104760.0,2.73437023]
[1737817989914,0.00895469,104770.0,104760.0,1.14691328]
[1737817990321,0.002,104770.0,104760.0,2.62124649]
[1737817990524,0.002,104770.0,104760.0,4.20870344]
[1737817991519,0.002,104770.0,104760.0,2.62116649]
[1737817992323,0.002,104770.0,104760.0,2.57939858]
[1737817992522,0.002,104770.0,104760.0,2.63515553]
[1737817992713,0.002,104770.0,104760.0,2.63603553]
[1737817993607,0.002,104770.0,104760.0,2.65095095]
[1737817995116,0.002,104770.0,104760.0,2.17802529]
[1737817996717,0.002,104770.0,104760.0,2.10786529]
[1737817996924,0.002,104770.0,104760.0,2.14758529]
[1737817997624,0.002,104770.0,104760.0,3.64758529]
[1737817997812,0.002,104770.0,104760.0,3.67948529]
[1737817998324,0.21405238,104780.0,104770.0,0.152723]
[1737817998516,0.21405238,104780.0,104770.0,0.65766328]
[1737817999719,0.21605238,104780.0,104770.0,0.65766328]
[1737818000024,0.06334338,104780.0,104770.0,0.65766328]
[1737818000423,0.06334338,104780.0,104770.0,0.65766327]
[1737818002126,0.06334338,104780.0,104770.0,0.61589536]
[1737818003125,0.06334338,104780.0,104770.0,2.11589536]
[1737818003527,0.03234338,104780.0,104770.0,2.14639536]
[1737818003829,0.00214338,104780.0,104770.0,2.18815849]
[1737818004029,0.00214338,104780.0,104770.0,2.21935849]
[1737818004729,0.00214338,104780.0,104770.0,2.21935736]
[1737818005521,0.00214338,104780.0,104770.0,3.03402735]
[1737818006630,0.00214338,104780.0,104770.0,3.03402693]
[1737818008227,0.152694,104790.0,104780.0,0.152708]
[1737818008423,0.152694,104790.0,104780.0,0.65764194]
[1737818008627,0.17713176,104800.0,104780.0,0.50493394]
[1737818008825,0.32981476,104800.0,104790.0,0.24015095]
[1737818009025,0.32981476,104800.0,104790.0,0.65762794]
[1737818009229,0.32981476,104800.0,104790.0,0.29682794]
[1737818009734,0.32981476,104800.0,104790.0,0.11406319]
[1737818009933,0.32981476,104800.0,104790.0,0.26675719]
[1737818010137,0.32981476,104800.0,104790.0,0.62755719]
[1737818010935,0.33181476,104800.0,104790.0,0.62755704]
[1737818011930,0.33181476,104800.0,104790.0,1.02570706]
[1737818013223,0.33181476,104800.0,104790.0,2.52570706]
[1737818014625,0.33181476,104800.0,104790.0,2.51079335]
[1737818014825,0.33181476,104800.0,104790.0,2.52570712]
[1737818015538,0.33181476,104800.0,104790.0,2.938626]
[1737818016636,0.33181476,104800.0,104790.0,2.93862539]
[1737818016937,0.14603176,104800.0,104790.0,2.99601159]
[1737818017138,0.14603176,104800.0,104790.0,3.02781159]
[1737818017939,0.14603176,104800.0,104790.0,3.02781116]
[1737818018139,0.1162063,104800.0,104790.0,3.02781116]
[1737818018541,0.1162063,104800.0,104790.0,2.97042496]
[1737818018742,0.1162063,104800.0,104790.0,3.02781116]
[1737818019135,0.1162063,104800.0,104790.0,2.97042496]
[1737818019739,0.0847063,104800.0,104790.0,3.00046448]
[1737818020142,0.0847063,104800.0,104790.0,2.82984551]
[1737818022047,0.2373853,104800.0,104790.0,2.82984551]
[1737818022341,0.2694853,104800.0,104790.0,2.82984551]
[1737818022535,0.2694853,104800.0,104790.0,2.82984535]
[1737818023141,0.50359334,104830.0,104790.0,1.38807834]
[1737818023142,0.29543134,104830.0,104790.0,1.38807834]
[1737818023341,0.29543134,104830.0,104820.0,0.60087572]
[1737818023544,0.32753134,104830.0,104820.0,0.52836257]
[1737818023737,0.35813134,104830.0,104820.0,2.11578829]
[1737818024054,0.35813134,104830.0,104820.0,2.10087572]
[1737818024346,0.32753134,104830.0,104820.0,2.10087572]
[1737818025138,0.32753134,104830.0,104820.0,2.01345]
[1737818026337,0.32953134,104830.0,104820.0,2.01345]
[1737818026943,0.32953134,104830.0,104820.0,2.02835997]
[1737818027144,0.32753134,104830.0,104820.0,2.02835997]
[1737818027349,0.185738,104830.0,104820.0,2.19886678]
[1737818028051,0.185738,104830.0,104820.0,2.18395681]
[1737818028254,0.185738,104830.0,104820.0,0.68395681]
[1737818028552,0.185738,104830.0,104820.0,0.77138253]
[1737818028953,0.001,104830.0,104820.0,0.77138253]
[1737818030853,0.153635,104830.0,104820.0,0.68395681]
[1737818031053,0.185235,104830.0,104820.0,0.68395681]
[1737818031449,0.185235,104830.0,104820.0,0.77138253]
[1737818031450,0.0326,104830.0,104820.0,0.77138253]
[1737818031853,0.001,104830.0,104820.0,0.77138253]
[1737818032157,0.001,104830.0,104820.0,0.80388253]
[1737818032355,0.001,104830.0,104820.0,0.84562474]
[1737818032756,0.263224,104840.0,104830.0,0.152635]
[1737818032955,0.263224,104840.0,104830.0,0.59616072]
[1737818033361,0.263224,104840.0,104830.0,2.09616072]
[1737818033861,0.263224,104840.0,104830.0,2.008735]
[1737818034162,0.263224,104840.0,104830.0,2.09616072]
[1737818034357,0.263224,104840.0,104830.0,2.008735]
[1737818035056,0.263224,104840.0,104830.0,0.508735]
[1737818036057,0.264224,104840.0,104830.0,0.508735]
[1737818036562,0.264224,104840.0,104830.0,0.59616072]
[1737818038460,0.233624,104840.0,104830.0,0.59616072]
[1737818038962,0.233624,104840.0,104830.0,0.62826072]
[1737818039467,0.203624,104840.0,104830.0,0.62826072]
[1737818039665,0.203624,104840.0,104830.0,0.79841634]
[1737818041160,0.203624,104840.0,104830.0,2.29841634]
[1737818042268,0.0653,104850.0,104830.0,2.29841634]
[1737818042269,0.14279334,104870.0,104860.0,0.152592]
[1737818042560,0.14279334,104870.0,104860.0,1.17909715]
[1737818043465,0.14479334,104870.0,104860.0,1.22083957]
[1737818043670,0.17105341,104880.0,104860.0,1.20929157]
[1737818043973,0.17105341,104880.0,104870.0,0.68822844]
[1737818044670,0.17105341,104880.0,104870.0,0.78358004]
[1737818045271,0.52819634,104900.0,104870.0,0.63100304]
[1737818045463,0.52819634,104900.0,104890.0,0.60077372]
[1737818045760,0.52819634,104900.0,104890.0,0.67085372]
[1737818046362,0.50926701,104900.0,104890.0,0.67085372]
[1737818046564,0.51026701,104900.0,104890.0,2.17085372]
[1737818048158,0.57163228,104910.0,104890.0,2.37910572]
[1737818048363,0.2355116,104920.0,104900.0,0.53565144]
[1737818048667,0.1854116,104920.0,104910.0,0.76373044]
[1737818048856,0.38500874,104960.0,104910.0,0.97201144]
[1737818049058,0.37116502,104960.0,104950.0,0.44822572]
[1737818049261,0.37116502,104960.0,104950.0,0.70300306]
[1737818049471,0.19868673,104970.0,104950.0,0.70300306]
[1737818049662,0.19868673,104970.0,104960.0,0.68809744]
[1737818049863,0.19868673,104970.0,104960.0,0.61556234]
[1737818050061,0.19868673,104970.0,104960.0,0.63938232]
[1737818050257,0.17239033,104970.0,104960.0,0.63938232]
[1737818050463,0.17239033,104970.0,104960.0,0.65370232]
[1737818050865,0.17239033,104970.0,104960.0,0.73298232]
[1737818051076,0.17239033,104970.0,104960.0,0.73297766]
[1737818051290,0.13538255,104970.0,104960.0,0.73297766]
[1737818051772,0.13538255,104970.0,104960.0,0.82824751]
[1737818051965,0.13538255,104970.0,104960.0,0.63937766]
[1737818052166,0.13538255,104970.0,104960.0,2.21873766]
[1737818052373,0.57481455,104970.0,104960.0,0.03870594]
[1737818052572,0.69354027,104970.0,104960.0,0.03870594]
[1737818052767,0.60611455,104970.0,104960.0,0.03870594]
[1737818054063,0.60611455,104970.0,104960.0,0.0148869]
[1737818055476,0.470732,104970.0,104960.0,0.0148869]
[1737818056473,0.287,104970.0,104960.0,0.0148869]
[1737818056676,0.287,104970.0,104960.0,0.61555862]
[1737818056875,0.287,104970.0,104960.0,0.5281329]
[1737818057674,0.001,104970.0,104960.0,0.5281329]
[1737818059070,0.001,104970.0,104960.0,0.513246]
[1737818059576,0.152418,104980.0,104960.0,0.513246]
[1737818059776,0.438418,104980.0,104960.0,0.513246]
[1737818059966,0.236,104970.0,104960.0,0.513246]
[1737818060169,0.152454,104960.0,104940.0,2.183569]
[1737818060377,0.0323,104950.0,104940.0,2.183569]
[1737818060681,0.2992,104960.0,104940.0,2.27099472]
[1737818061077,0.2992,104960.0,104940.0,2.28576167]
[1737818062075,0.2992,104960.0,104940.0,2.27099472]
[1737818062577,0.236,104950.0,104940.0,2.262369]
[1737818062784,0.236,104950.0,104940.0,2.183569]
[1737818062977,0.236,104950.0,104940.0,2.262329]
[1737818063585,0.236,104950.0,104940.0,2.183569]
[1737818063882,0.236,104950.0,104940.0,2.01341338]
[1737818064077,0.236,104950.0,104940.0,1.86094338]
[1737818064078,0.09685931,104950.0,104940.0,1.86094338]
[1737818064273,0.33674603,104950.0,104940.0,1.86094338]
[1737818064884,0.24932031,104950.0,104940.0,1.86094338]
[1737818065687,0.33674603,104950.0,104940.0,1.86094338]
[1737818066477,0.04918749,104950.0,104940.0,2.031099]
[1737818066681,0.20164849,104950.0,104940.0,2.031099]
[1737818066885,0.28907421,104950.0,104940.0,2.031099]
[1737818067083,0.64987421,104950.0,104940.0,1.670299]
[1737818068080,0.64987421,104950.0,104940.0,1.68508903]
[1737818069079,0.64987421,104950.0,104940.0,1.670299]
[1737818069377,0.56244849,104950.0,104940.0,1.670299]
[1737818069885,0.59424849,104950.0,104940.0,1.670299]
[1737818070087,0.68167421,104950.0,104940.0,1.670299]
[1737818070279,0.39575614,104950.0,104940.0,1.670299]
[1737818071078,0.54821714,104950.0,104940.0,1.670299]
[1737818072180,0.54821714,104950.0,104940.0,1.68519366]
[1737818072380,0.54821714,104950.0,104940.0,0.18519366]
[1737818072583,0.54821714,104950.0,104940.0,0.13529366]
[1737818072784,0.54821714,104950.0,104940.0,0.13464821]
[1737818074087,0.34804574,104950.0,104940.0,0.13464821]
[1737818076098,0.34804574,104950.0,104940.0,0.01489466]
[1737818079292,0.34804574,104950.0,104940.0,0.01489471]
[1737818079788,0.152475,104940.0,104930.0,0.22760205]
[1737818079991,0.60070072,104940.0,104930.0,0.22760205]
[1737818080291,0.60070072,104940.0,104930.0,1.72760205]
[1737818080693,0.60070072,104940.0,104930.0,0.22760205]
[1737818080881,0.513275,104940.0,104930.0,0.22760205]
[1737818081079,0.513275,104940.0,104930.0,0.22860205]
[1737818081691,0.60070072,104940.0,104930.0,0.2284858]
[1737818083297,0.513275,104940.0,104930.0,0.2284858]
[1737818084195,0.60070072,104940.0,104930.0,0.2284858]
[1737818084491,0.60070072,104940.0,104930.0,0.00114338]
[1737818085489,0.23990072,104940.0,104930.0,0.36194338]
[1737818085689,0.23990072,104940.0,104930.0,0.36094338]
[1737818085891,0.152475,104940.0,104930.0,0.36094338]
[1737818087395,0.152475,104940.0,104930.0,0.5882858]
[1737818087595,0.152475,104940.0,104930.0,0.629991]
[1737818087997,0.152475,104940.0,104930.0,0.5882858]
[1737818088894,0.40450353,104950.0,104930.0,0.5882858]
[1737818089096,0.09776643,104980.0,104970.0,0.152432]
[1737818089303,0.04776643,104980.0,104970.0,0.67917772]
[1737818089591,0.04776643,104980.0,104970.0,1.8608]
[1737818089802,0.20018343,104980.0,104970.0,1.8608]
[1737818090499,0.2943622,104980.0,104970.0,1.8608]
[1737818091398,0.152432,104970.0,104960.0,0.36094338]
[1737818091701,0.152432,104970.0,104960.0,0.00014338]
[1737818091702,0.30235772,104970.0,104960.0,0.00014338]
[1737818092392,0.30235772,104970.0,104960.0,0.36094338]
[1737818094199,0.30335772,104970.0,104960.0,0.36094338]
[1737818095101,0.39078344,104970.0,104960.0,0.36094338]
[1737818096304,0.31393403,104970.0,104960.0,0.36094338]
[1737818099010,0.31293403,104970.0,104960.0,0.36094338]
[1737818099197,0.31393403,104970.0,104960.0,0.36094338]
[1737818099600,0.40135975,104970.0,104960.0,0.36094338]
[1737818099805,0.31393403,104970.0,104960.0,0.36094338]
[1737818112708,0.40135975,104970.0,104960.0,0.36094338]
[1737818113415,0.76215975,104970.0,104960.0,0.00014338]
[1737818113615,0.40135975,104970.0,104960.0,0.00014338]
[1737818113816,0.152446,104960.0,104950.0,0.3608]
[1737818114005,0.27187172,104960.0,104950.0,0.3608]
[1737818116510,0.34879172,104960.0,104950.0,0.3608]
[1737818116710,0.43419132,104960.0,104950.0,0.3608]
[1737818116916,0.52161704,104960.0,104950.0,0.3608]
[1737818117121,0.43419132,104960.0,104950.0,0.3608]
[1737818117318,0.28174532,104960.0,104940.0,0.36094338]
[1737818117511,0.32731244,104950.0,104940.0,0.36094338]
[1737818118321,0.68811244,104950.0,104940.0,0.00014338]
[1737818118716,0.152475,104940.0,104930.0,0.58814242]
[1737818118923,0.38992644,104940.0,104930.0,0.3685179]
[1737818119119,0.23745144,104940.0,104920.0,0.98626624]
[1737818119421,0.23745144,104940.0,104920.0,0.62546624]
[1737818119422,0.71437572,104930.0,104920.0,0.62546624]
[1737818119621,0.67747572,104930.0,104920.0,0.62546624]
[1737818120415,0.61241144,104930.0,104910.0,0.00014338]
[1737818120717,0.61241144,104930.0,104910.0,0.28365804]
[1737818120718,0.68815544,104920.0,104910.0,0.28365804]
[1737818122024,0.68815544,104920.0,104910.0,0.28465804]
[1737818122521,0.71865544,104920.0,104910.0,0.28465804]
[1737818123825,0.71865544,104920.0,104910.0,0.28565804]
[1737818124726,0.71965544,104920.0,104910.0,0.28365804]
[1737818124928,0.71965544,104920.0,104900.0,0.3608]
[1737818124929,0.65255104,104920.0,104900.0,0.3608]
[1737818125221,0.39327044,104910.0,104900.0,0.3608]
[1737818126331,0.152533,104900.0,104890.0,1.86094338]
[1737818126516,0.23995872,104900.0,104890.0,1.86094338]
[1737818127023,0.61189144,104900.0,104870.0,0.36234261]
[1737818127228,0.23998772,104880.0,104870.0,0.00154261]
[1737818127524,0.23998772,104880.0,104870.0,1.86234261]
[1737818127925,0.23998772,104880.0,104870.0,1.86091243]
[1737818129115,0.44822572,104880.0,104830.0,0.3608]
[1737818129321,0.24003172,104850.0,104840.0,0.3608]
[1737818129519,0.08742572,104850.0,104830.0,0.0609]
[1737818129728,0.24004672,104840.0,104830.0,0.0609]
[1737818130020,0.152635,104830.0,104820.0,0.79236816]
[1737818130220,0.152635,104830.0,104820.0,0.85326816]
[1737818130424,7.882e-05,104830.0,104820.0,0.85326816]
[1737818130614,7.882e-05,104830.0,104820.0,0.69347572]
[1737818130925,0.00014338,104840.0,104830.0,0.161635]
[1737818131118,0.00014338,104840.0,104830.0,0.62476986]
[1737818131314,0.00014338,104840.0,104830.0,0.53734344]
[1737818131518,0.00014338,104840.0,104830.0,2.03734344]